bitfinex-derivatives/quotes_SOLF0:USTF0_20250623
["timestamp","ask_amount","ask_price","bid_price","bid_amount"]
[1750697620746,59.58,132.11,131.96,714.94]
[1750697620949,22.25251784,132.07,131.97,22.25251784]
[1750697621159,4.6333,132.1,131.96,722.2006]
[1750697621160,22.25251784,132.05,131.96,66.8406]
[1750697621359,22.25251784,132.05,131.98,7.5731]
[1750697621559,22.25251784,132.05,131.96,66.8406]
[1750697621859,4.6333,132.1,132.0,22.25251784]
[1750697622159,22.25251784,132.07,131.97,22.25251784]
[1750697622356,7.5701,132.04,132.01,7.5716]
[1750697622654,22.25251784,132.07,131.97,22.25251784]
[1750697622852,7.5704,132.04,132.01,7.5716]
[1750697623049,59.58,132.06,131.99,22.25251784]
[1750697623366,7.5684,132.07,132.04,7.5697]
[1750697623953,7.5691,132.06,132.03,7.5704]
[1750697624353,22.25251784,132.09,131.99,22.25251784]
[1750697624554,7.5689,132.06,131.99,22.25251784]
[1750697624756,22.25251784,132.05,131.96,7.2606]
[1750697624960,22.25251784,132.05,131.9,250.309303]
[1750697624961,22.25251784,132.03,131.94,22.25251784]
[1750697625268,81.85251784,132.03,131.94,22.25251784]
[1750697625466,81.85251784,132.03,131.93,7.1224]
[1750697625658,4.6926,132.02,131.95,7.5748]
[1750697626065,7.5732,131.99,131.96,7.5745]
[1750697626368,81.85251784,132.03,131.96,22.25251784]
[1750697626369,59.6,132.03,131.96,22.25251784]
[1750697626762,7.5712,132.02,131.99,7.5726]
[1750697626961,59.6,132.03,131.96,22.25251784]
[1750697627562,4.6926,132.07,131.98,22.25251784]
[1750697627768,15.1332,132.11,132.0,22.25251784]
[1750697627769,81.85251784,132.11,132.0,22.25251784]
[1750697628068,2.442,132.1,132.0,22.25251784]
[1750697628271,2.442,132.1,132.02,22.25251784]
[1750697628869,2.442,132.1,132.0,22.25251784]
[1750697629367,7.5682,132.08,132.05,7.5692]
[1750697629567,2.442,132.1,132.02,22.25251784]
[1750697629961,7.5686,132.07,132.04,7.5698]
[1750697630361,2.442,132.1,132.05,7.5692]
[1750697630564,59.6,132.11,132.04,22.25251784]
[1750697630872,7.567,132.1,132.07,7.568]
[1750697631171,59.6,132.11,132.06,22.25251784]
[1750697631466,59.6,132.11,132.05,22.25251784]
[1750697631964,7.5659,132.12,132.09,7.5668]
[1750697632162,654.0,132.15,132.09,22.25251784]
[1750697632365,59.6,132.16,132.12,7.565]
[1750697632569,59.6,132.16,132.11,22.25251784]
[1750697633270,59.6,132.16,132.1,22.25251784]
[1750697633469,7.5646,132.14,132.1,22.25251784]
[1750697633771,59.6,132.16,132.1,22.25251784]
[1750697634073,7.5653,132.13,132.1,29.81881784]
[1750697634262,7.5653,132.13,132.1,7.5663]
[1750697634460,7.5664,132.11,132.09,4.8637]
[1750697634658,81.85251784,132.16,132.06,22.25251784]
[1750697635571,22.25251784,132.14,132.04,24.64481784]
[1750697635872,22.25251784,132.12,132.04,2.3923]
[1750697636074,7.72922369,132.11,132.02,22.25251784]
[1750697636273,5.32152369,132.1,132.02,22.25251784]
[1750697636486,22.25251784,132.14,132.04,22.25251784]
[1750697636663,5.32072999,132.13,132.04,22.25251784]
[1750697636867,5.32072999,132.12,132.05,7.5692]
[1750697637065,5.32072999,132.11,132.05,7.5692]
[1750697637262,5.32243752,132.1,131.94,24.22735967]
[1750697637466,22.25251784,132.08,131.98,22.25251784]
[1750697637679,5.32243752,132.07,131.98,22.25251784]
[1750697637862,24.67921784,132.08,131.98,22.25251784]
[1750697638062,7.5709,132.03,131.98,22.25251784]
[1750697638265,5.32153161,132.06,131.96,4.79]
[1750697638464,5.32067149,132.05,131.96,4.79]
[1750697638678,22.25251784,132.04,131.96,4.79]
[1750697639180,22.25251784,132.02,131.95,2.3574]
[1750697639381,22.25251784,132.02,131.93,22.25251784]
[1750697639585,7.5741,131.97,131.92,24.58491784]
[1750697639976,59.58,132.01,131.92,24.58491784]
[1750697640178,7.5751,131.96,131.92,24.58491784]
[1750697640375,59.58,132.01,131.92,24.58491784]
[1750697640875,59.58,132.01,131.92,2.3324]
[1750697641077,88.57096695,132.05,131.92,2.3324]
[1750697641276,88.57096695,132.05,131.96,22.25251784]
[1750697641476,6.71844911,132.07,132.0,22.25251784]
[1750697641680,2.4267,132.08,132.0,22.25251784]
[1750697641681,9.14514911,132.08,132.0,22.25251784]
[1750697641882,2.4267,132.08,132.0,22.25251784]
[1750697642077,88.57096695,132.09,132.02,22.25251784]
[1750697642078,59.6,132.09,132.02,22.25251784]
[1750697642385,7.5692,132.06,132.02,29.82351784]
[1750697642575,59.6,132.09,132.02,22.25251784]
[1750697643479,7.5682,132.08,132.03,22.25251784]
[1750697643780,65.71844911,132.13,132.05,22.25251784]
[1750697643987,7.5671,132.1,132.06,7.5687]
[1750697644186,7.5671,132.1,132.05,22.25251784]
[1750697644387,66.5653,132.13,132.1,7.5667]
[1750697644589,87.97096695,132.17,132.09,22.25251784]
[1750697644788,87.97096695,132.17,132.06,22.25251784]
[1750697644987,6.71844911,132.16,132.06,22.25251784]
[1750697645182,87.97096695,132.17,132.06,22.25251784]
[1750697645484,22.25251784,132.15,132.06,22.25251784]
[1750697645782,22.25251784,132.11,132.02,22.25251784]
[1750697646486,7.5681,132.08,132.05,7.5697]
[1750697646682,81.25251784,132.12,132.02,22.25251784]
[1750697646875,59.0,132.12,132.04,22.25251784]
[1750697647083,7.5691,132.06,132.03,7.5707]
[1750697647382,81.25251784,132.12,132.02,22.25251784]
[1750697647579,7.5683,132.08,132.02,22.25251784]
[1750697647786,81.25251784,132.12,132.02,22.25251784]
[1750697648182,7.5683,132.08,132.04,7.5699]
[1750697648380,81.25251784,132.12,132.04,7.5699]
[1750697648582,81.25251784,132.12,132.02,22.25251784]
[1750697648783,22.25251784,132.1,132.01,7.1402]
[1750697648983,22.25251784,132.06,131.96,59.0]
[1750697649189,22.25251784,132.06,131.97,4.8458]
[1750697649384,22.25251784,132.04,131.97,12.4197]
[1750697649586,59.0,132.07,131.97,4.8458]
[1750697649782,59.0,132.07,131.99,7.5731]
[1750697649978,22.25251784,132.05,131.97,4.8458]
[1750697651392,7.572,132.02,131.97,4.8458]
[1750697652095,7.572,132.01,131.97,4.8458]
[1750697652499,7.5727,132.0,131.97,4.8458]
[1750697652684,22.25251784,132.01,131.93,180.06]
[1750697653296,7.5746,131.97,131.93,180.06]
[1750697653497,22.25251784,132.0,131.93,180.06]
[1750697653896,7.5743,131.97,131.94,7.5756]
[1750697654097,22.25251784,132.0,131.93,180.06]
[1750697654307,7.5734,131.99,131.95,7.5749]
[1750697654499,22.25251784,132.0,131.93,180.06]
[1750697654805,7.574,131.98,131.93,180.06]
[1750697655006,22.25251784,132.0,131.93,180.06]
[1750697655304,7.5735,131.99,131.95,7.575]
[1750697655503,22.25251784,132.0,131.95,7.575]
[1750697655898,7.5737,131.98,131.95,7.575]
[1750697656094,59.0,132.02,131.93,180.06]
[1750697656298,83.60011784,132.04,131.95,22.25251784]
[1750697656505,7.5729,132.0,131.95,22.25251784]
[1750697656701,7.5729,132.0,131.97,7.5739]
[1750697656913,22.25251784,132.02,131.93,202.31251784]
[1750697657305,22.25251784,132.0,131.94,7.5756]
[1750697657605,22.25251784,132.0,131.93,180.06]
[1750697657904,22.25251784,132.03,131.97,7.5741]
[1750697658103,22.25251784,132.03,131.93,202.31251784]
[1750697658302,83.60011784,132.04,131.95,22.25251784]
[1750697658500,2.3771,132.06,131.93,180.06]
[1750697658501,24.62961784,132.06,131.97,22.25251784]
[1750697658700,2.3771,132.06,131.98,2.497]
[1750697658902,24.62961784,132.06,131.98,2.497]
[1750697659093,24.62961784,132.06,131.97,22.25251784]
[1750697659792,7.5718,132.02,131.97,22.25251784]
[1750697660099,24.62961784,132.06,131.98,7.5732]
[1750697660602,24.62961784,132.06,131.96,2.4931]
[1750697660806,22.25251784,132.04,131.96,2.4931]
[1750697661002,7.572,132.01,131.97,7.574]
[1750697661506,2.3771,132.06,131.97,7.574]
[1750697661710,22.25251784,132.05,131.98,7.5735]
[1750697661910,59.02,132.08,132.0,22.25251784]
[1750697662302,59.02,132.08,132.01,7.5719]
[1750697662502,59.02,132.08,131.97,61.3267]
[1750697662702,81.27251784,132.08,132.0,29.82501784]
[1750697663009,81.27251784,132.08,131.96,24.74561784]
[1750697663010,22.25251784,132.06,131.96,24.74561784]
[1750697663208,7.5717,132.02,131.96,24.74561784]
[1750697663410,22.25251784,132.06,131.96,24.74561784]
[1750697663796,22.25251784,132.06,131.98,7.5737]
[1750697664909,22.25251784,132.06,131.98,22.25251784]
[1750697665409,7.572,132.01,131.98,22.25251784]
[1750697665606,22.25251784,132.07,131.96,24.74561784]
[1750697665810,7.5726,132.0,131.96,24.74561784]
[1750697666009,7.5726,132.0,131.97,7.5737]
[1750697666209,22.25251784,132.07,131.96,24.74561784]
[1750697666409,22.25251784,132.07,131.96,2.4931]
[1750697666609,22.25251784,132.07,131.97,22.25251784]
[1750697667203,7.5723,132.01,131.98,7.5736]
[1750697667409,22.25251784,132.07,131.97,22.25251784]
[1750697667711,59.02,132.08,131.96,2.4931]
[1750697668014,22.25251784,132.05,131.96,2.4931]
[1750697668198,59.02,132.08,131.96,2.4931]
[1750697668404,22.25251784,132.05,131.96,2.4931]
[1750697668804,22.25251784,132.05,131.96,10.0674]
[1750697669005,22.25251784,132.05,131.96,2.4931]
[1750697669209,7.5729,132.0,131.97,7.574]
[1750697670112,59.02,132.08,131.96,2.4931]
[1750697670113,59.02,132.08,131.99,22.25251784]
[1750697670310,59.02,132.08,131.98,22.25251784]
[1750697671017,7.5704,132.04,131.99,22.25251784]
[1750697671209,59.02,132.08,131.99,22.25251784]
[1750697672012,59.02,132.08,131.97,62.0]
[1750697672013,7.5688,132.07,132.04,7.57]
[1750697672218,59.02,132.08,132.01,22.25251784]
[1750697672715,59.02,132.08,132.03,22.25251784]
[1750697673315,59.02,132.08,132.02,2.3186]
[1750697673813,7.5691,132.06,132.03,7.5705]
[1750697674313,59.02,132.08,132.0,7.5721]
[1750697674516,81.27251784,132.08,131.98,80.59251784]
[1750697674918,7.5712,132.03,132.0,7.5722]
[1750697675117,81.27251784,132.08,131.98,80.59251784]
[1750697675416,59.02,132.08,132.0,22.25251784]
[1750697675915,7.5699,132.05,132.02,7.5714]
[1750697676117,59.02,132.08,132.0,22.25251784]
[1750697676511,59.02,132.08,132.02,22.25251784]
[1750697677115,59.02,132.08,132.0,22.25251784]
[1750697677420,59.02,132.08,132.02,7.571]
[1750697677421,7.57,132.05,132.02,7.571]
[1750697677620,59.02,132.08,131.98,80.59251784]
[1750697677810,22.25251784,132.05,131.96,24.74561784]
[1750697678014,22.25251784,132.05,131.96,2.4931]
[1750697678215,14.23016275,132.02,131.94,14.23016275]
[1750697678410,72.57016275,132.02,131.92,4.8988]
[1750697678616,7.5746,131.97,131.94,7.5757]
[1750697678815,72.57016275,132.02,131.93,14.23016275]
[1750697679018,2.5255,132.01,131.93,14.23016275]
[1750697679723,7.5741,131.98,131.94,7.5757]
[1750697679920,2.5255,132.01,131.93,14.23016275]
[1750697680224,7.5737,131.99,131.95,7.5754]
[1750697680420,2.5255,132.01,131.93,22.29921039]
[1750697680819,24.82471039,132.01,131.93,7.5764]
[1750697681122,27.15881039,132.01,131.92,4.8988]
[1750697681422,27.15881039,132.01,131.93,7.5762]
[1750697681620,22.29921039,131.99,131.9,2.3692]
[1750697681823,22.29921039,131.99,131.89,83.17231039]
[1750697682524,7.5752,131.96,131.89,83.17231039]
[1750697682727,22.29921039,131.99,131.89,83.17231039]
[1750697683226,22.29921039,131.99,131.91,22.29921039]
[1750697683410,7.5745,131.97,131.91,22.29921039]
[1750697683915,4.8596,132.01,131.91,22.29921039]
[1750697684121,7.5731,132.0,131.93,22.29921039]
[1750697684317,4.8596,132.01,131.93,22.29921039]
[1750697684513,7.5736,131.99,131.95,7.5751]
[1750697684712,4.8596,132.01,131.93,22.29921039]
[1750697685113,7.5734,131.99,131.96,7.5745]
[1750697685523,7.5737,131.98,131.95,7.5751]
[1750697685718,7.5737,131.98,131.93,22.29921039]
[1750697685919,4.8596,132.01,131.93,22.29921039]
[1750697686120,7.5734,131.99,131.96,7.5744]
[1750697686321,7.5734,131.99,131.93,22.29921039]
[1750697687024,2.5255,132.01,131.99,7.5728]
[1750697687323,58.36,132.07,131.99,22.29921039]
[1750697687525,58.36,132.07,131.98,22.29921039]
[1750697687722,22.29921039,132.06,131.99,7.5728]
[1750697688131,22.29921039,132.06,131.99,7.5731]
[1750697688424,22.29921039,132.06,131.96,29.51671039]
[1750697688630,22.29921039,132.04,131.96,7.5745]
[1750697689018,7.5734,131.99,131.96,7.5745]
[1750697689223,58.36,132.02,131.93,22.29921039]
[1750697689430,80.65921039,132.02,131.93,22.29921039]
[1750697689631,7.574,131.98,131.93,22.29921039]
[1750697689826,7.574,131.98,131.94,7.5757]
[1750697690037,22.29921039,132.0,131.92,7.336]
[1750697690524,22.29921039,132.0,131.92,2.37]
[1750697691235,7.5752,131.96,131.92,2.37]
[1750697691418,60.8687,132.02,131.92,2.37]
[1750697691419,60.8687,132.02,131.92,24.66921039]
[1750697691624,83.16791039,132.02,131.93,7.5761]
[1750697691828,83.16791039,132.02,131.92,24.66921039]
[1750697692333,22.29921039,132.0,131.92,2.37]
[1750697692529,22.29921039,132.0,131.9,22.29921039]
[1750697692932,22.29921039,131.98,131.89,5.0223]
[1750697693233,58.36,131.97,131.89,5.0223]
[1750697693531,58.36,131.97,131.9,22.29921039]
[1750697693830,58.36,131.97,131.92,7.5767]
[1750697694026,58.36,131.97,131.9,22.29921039]
[1750697694219,58.36,131.97,131.92,7.5771]
[1750697694421,58.36,131.97,131.9,22.29921039]
[1750697694824,58.36,131.97,131.92,22.29921039]
[1750697695223,712.66,132.01,131.95,7.575]
[1750697695433,712.66,132.01,131.94,22.29921039]
[1750697695935,712.66,132.01,131.9,62.0]
[1750697696128,7.5752,131.96,131.91,22.29921039]
[1750697696333,7.5752,131.96,131.93,7.5762]
[1750697696833,22.29921039,132.0,131.91,22.29921039]
[1750697697033,22.29921039,132.0,131.92,7.5769]
[1750697697335,22.29921039,132.0,131.91,22.29921039]
[1750697697537,7.5751,131.96,131.93,7.5762]
[1750697697729,22.29921039,132.0,131.91,22.29921039]
[1750697697930,712.66,132.01,131.91,22.29921039]
[1750697698130,7.5747,131.97,131.94,7.5756]
[1750697698328,712.66,132.01,131.94,7.5756]
[1750697698632,7.5747,131.97,131.94,7.576]
[1750697699028,712.66,132.01,131.94,7.576]
[1750697699939,22.29921039,132.0,131.91,22.29921039]
[1750697700439,22.29921039,131.96,131.89,2.4985]
[1750697700629,58.36,131.95,131.88,2.4422]
[1750697700827,22.29921039,131.94,131.86,2.4459]
[1750697701134,22.29921039,131.94,131.8,654.3]
[1750697701135,22.29921039,131.9,131.79,22.29921039]
[1750697701331,22.29921039,131.88,131.79,32.22841039]
[1750697701636,58.36,131.87,131.79,2.3449]
[1750697701947,7.5833,131.82,131.78,2.4459]
[1750697702234,27.01221039,131.86,131.78,2.4459]
[1750697702436,22.29921039,131.84,131.74,24.64411039]
[1750697702739,200.51921039,131.84,131.74,2.3449]
[1750697703039,22.29921039,131.82,131.73,4.9512]
[1750697703241,22.29921039,131.8,131.71,22.29921039]
[1750697703433,22.29921039,131.8,131.71,7.5888]
[1750697703628,22.29921039,131.8,131.7,24.64411039]
[1750697703933,22.29921039,131.8,131.7,2.3449]
[1750697704139,654.4,131.83,131.7,24.64411039]
[1750697704333,712.02,131.83,131.76,22.29921039]
[1750697704530,7.5835,131.81,131.76,7.5858]
[1750697704732,22.29921039,131.82,131.72,22.29921039]
[1750697704936,22.29921039,131.8,131.72,22.29921039]
[1750697705138,7.5858,131.77,131.72,22.29921039]
[1750697705340,22.29921039,131.82,131.72,22.29921039]
[1750697705637,7.5835,131.81,131.76,7.5859]
[1750697705833,712.02,131.83,131.74,22.29921039]
[1750697706340,7.5842,131.8,131.74,22.29921039]
[1750697706537,22.29921039,131.82,131.74,22.29921039]
[1750697706737,7.5857,131.78,131.72,22.29921039]
[1750697707040,22.29921039,131.82,131.72,22.29921039]
[1750697707646,734.31921039,131.83,131.72,22.29921039]
[1750697708543,712.02,131.83,131.72,22.29921039]
[1750697708736,22.29921039,131.82,131.72,22.29921039]
[1750697708936,7.5855,131.78,131.74,7.5873]
[1750697709141,22.29921039,131.82,131.72,22.29921039]
[1750697709454,7.585,131.79,131.75,7.5866]
[1750697709942,7.5853,131.78,131.74,7.5872]
[1750697710145,22.29921039,131.81,131.72,22.29921039]
[1750697710547,654.4,131.83,131.74,22.29921039]
[1750697710748,79.93921039,131.85,131.76,22.29921039]
[1750697711249,79.93921039,131.85,131.76,24.80251039]
[1750697711543,22.29921039,131.81,131.73,7.5877]
[1750697711845,22.29921039,131.81,131.73,22.29921039]
[1750697711846,57.64,131.8,131.73,22.29921039]
[1750697712051,57.64,131.8,131.73,29.88701039]
[1750697712052,7.5863,131.77,131.73,29.88701039]
[1750697712243,7.5863,131.77,131.73,22.29921039]
[1750697712544,7.585,131.79,131.75,7.5866]
[1750697712734,57.64,131.8,131.75,7.5866]
[1750697712938,57.64,131.8,131.73,22.29921039]
[1750697713134,7.5855,131.78,131.74,7.5872]
[1750697713343,57.64,131.8,131.73,22.29921039]
[1750697713647,7.5861,131.77,131.73,22.29921039]
[1750697713846,57.64,131.8,131.73,22.29921039]
[1750697714451,57.64,131.8,131.72,62.0]
[1750697714645,57.64,131.8,131.73,22.29921039]
[1750697715141,7.5855,131.78,131.75,7.5866]
[1750697715645,57.64,131.8,131.74,22.29921039]
[1750697715848,57.66,131.83,131.76,22.29921039]
[1750697716256,7.5833,131.82,131.78,21.84890534]
[1750697716449,57.66,131.83,131.77,2.3312]
[1750697716961,57.66,131.83,131.74,57.66]
[1750697716962,14.26410534,131.82,131.74,71.92410534]
[1750697717144,14.26410534,131.82,131.74,14.26410534]
[1750697717353,7.5861,131.77,131.74,21.85140534]
[1750697717846,7.5854,131.78,131.74,21.85140534]
[1750697718049,14.26410534,131.82,131.74,14.26410534]
[1750697719050,7.5849,131.79,131.74,14.26410534]
[1750697719262,7.5849,131.79,131.75,7.5866]
[1750697719453,7.5849,131.79,131.74,14.26410534]
[1750697719854,14.26410534,131.82,131.74,14.26410534]
[1750697720053,57.66,131.83,131.76,14.26410534]
[1750697720452,7.5832,131.82,131.76,14.26410534]
[1750697720749,57.66,131.83,131.78,14.26410534]
[1750697720954,2.4281,131.86,131.8,14.26410534]
[1750697721154,57.66,131.87,131.76,76.26410534]
[1750697721355,657.3558,131.9,131.82,14.26410534]
[1750697721655,221.84496703,131.91,131.84,14.26410534]
[1750697721860,57.66,131.91,131.84,14.26410534]
[1750697722055,57.66,131.91,131.86,14.26410534]
[1750697722260,57.66,131.91,131.84,24.68574898]
[1750697722554,7.5786,131.9,131.84,24.68574898]
[1750697722855,57.66,131.91,131.88,7.5793]
[1750697723060,57.66,131.91,131.84,2.3582]
[1750697723749,79.98754898,131.91,131.83,4.7094]
[1750697724250,79.98754898,131.91,131.83,2.3445]
[1750697724465,22.32754898,131.86,131.79,4.8878]
[1750697724656,57.66,131.91,131.79,27.21534898]
[1750697724657,7.5815,131.85,131.79,27.21534898]
[1750697724859,22.32754898,131.89,131.79,27.21534898]
[1750697725053,22.32754898,131.89,131.81,7.5834]
[1750697725254,57.66,131.91,131.79,27.21534898]
[1750697725451,22.32754898,131.89,131.79,27.21534898]
[1750697725648,7.5796,131.88,131.81,22.32754898]
[1750697725848,57.66,131.9,131.81,22.32754898]
[1750697726248,57.66,131.9,131.84,7.5814]
[1750697726448,57.66,131.9,131.81,22.32754898]
[1750697726651,22.32754898,131.89,131.8,22.32754898]
[1750697726860,22.32754898,131.89,131.79,62.5478]
[1750697727066,22.32754898,131.87,131.79,62.5478]
[1750697727254,22.32754898,131.87,131.8,7.584]
[1750697727453,22.32754898,131.85,131.74,22.32754898]
[1750697727646,57.66,131.84,131.76,22.32754898]
[1750697729149,57.66,131.84,131.78,22.32754898]
[1750697729552,57.66,131.84,131.79,2.4858]
[1750697729750,7.5829,131.82,131.79,10.07]
[1750697730153,7.5829,131.82,131.8,7.584]
[1750697730353,57.66,131.84,131.8,7.584]
[1750697730859,57.66,131.84,131.79,2.4858]
[1750697731256,57.66,131.84,131.8,7.5837]
[1750697731663,57.66,131.84,131.79,2.4858]
[1750697731856,57.66,131.84,131.8,7.5835]
[1750697732158,57.66,131.84,131.79,2.4858]
[1750697732462,65.2421,131.84,131.79,2.4858]
[1750697732653,57.66,131.84,131.8,7.5837]
[1750697732854,57.66,131.84,131.79,2.4858]
[1750697733255,81.62974898,131.88,131.8,22.32754898]
[1750697733656,81.62974898,131.88,131.82,7.5827]
[1750697733960,7.582,131.84,131.8,22.32754898]
[1750697734158,81.62974898,131.88,131.82,7.5824]
[1750697734360,59.3022,131.88,131.8,22.32754898]
[1750697734565,59.3022,131.88,131.8,4.6358]
[1750697734761,81.62974898,131.88,131.77,79.18754898]
[1750697735260,81.62974898,131.88,131.8,7.5837]
[1750697735654,81.62974898,131.88,131.8,7.5836]
[1750697735855,81.62974898,131.88,131.79,22.32754898]
[1750697736259,7.582,131.84,131.81,7.583]
[1750697737167,7.5814,131.85,131.82,7.5828]
[1750697737362,81.62974898,131.88,131.79,22.32754898]
[1750697737666,81.62974898,131.88,131.81,7.5832]
[1750697737867,81.62974898,131.88,131.79,22.32754898]
[1750697738264,7.5821,131.84,131.79,22.32754898]
[1750697738463,81.62974898,131.88,131.79,22.32754898]
[1750697738664,59.3022,131.88,131.79,22.32754898]
[1750697738960,59.3022,131.88,131.82,7.5826]
[1750697739674,81.62974898,131.88,131.78,22.32754898]
[1750697739862,7.5827,131.83,131.78,22.32754898]
[1750697740061,81.62974898,131.88,131.78,22.32754898]
[1750697740563,7.5829,131.82,131.8,7.5839]
[1750697741066,7.5826,131.83,131.78,22.32754898]
[1750697741268,81.62974898,131.88,131.78,22.32754898]
[1750697741464,7.583,131.82,131.78,22.32754898]
[1750697741666,22.32754898,131.86,131.77,56.86]
[1750697741968,74.4614,131.88,131.75,6.992]
[1750697741969,7.5849,131.79,131.75,6.992]
[1750697742460,7.5849,131.79,131.76,7.5862]
[1750697742665,7.5843,131.8,131.75,6.992]
[1750697742860,7.5843,131.8,131.77,7.5852]
[1750697743063,7.5837,131.81,131.76,22.32754898]
[1750697743263,56.86,131.83,131.76,22.32754898]
[1750697743572,56.86,131.83,131.78,7.5849]
[1750697743770,56.86,131.83,131.76,22.32754898]
[1750697744269,56.86,131.83,131.77,14.26698833]
[1750697744569,7.5837,131.81,131.79,7.5845]
[1750697744770,56.86,131.83,131.77,14.26698833]
[1750697746071,56.86,131.83,131.75,6.992]
[1750697746273,7.5849,131.79,131.75,21.25898833]
[1750697746867,56.86,131.83,131.77,14.26698833]
[1750697747272,56.86,131.83,131.79,7.5843]
[1750697747576,7.5835,131.81,131.79,7.5843]
[1750697747960,7.5832,131.82,131.8,7.5839]
[1750697748169,56.86,131.83,131.77,14.26698833]
[1750697748373,56.86,131.83,131.79,14.26698833]
[1750697748771,71.12698833,131.87,131.79,14.26698833]
[1750697748979,71.12698833,131.87,131.81,7.5831]
[1750697749572,7.5827,131.83,131.8,7.5837]
[1750697749777,14.26698833,131.85,131.76,62.0]
[1750697749969,7.5838,131.81,131.78,7.5848]
[1750697750170,14.26698833,131.85,131.78,7.5848]
[1750697750370,14.26698833,131.85,131.77,14.26698833]
[1750697750577,7.5844,131.8,131.77,21.85238833]
[1750697750775,14.26698833,131.85,131.75,6.992]
[1750697750974,14.26698833,131.85,131.76,14.26698833]
[1750697751270,7.5846,131.79,131.77,7.5855]
[1750697752075,71.12698833,131.82,131.75,6.992]
[1750697752278,14.26698833,131.8,131.71,14.26698833]
[1750697752472,7.587,131.75,131.71,14.26698833]
[1750697753072,7.587,131.75,131.72,7.5885]
[1750697753273,7.587,131.75,131.71,14.26698833]
[1750697753480,7.5866,131.76,131.73,7.5877]
[1750697753776,14.26698833,131.79,131.71,14.26698833]
[1750697753977,18.95968833,131.81,131.74,7.5872]
[1750697754176,18.95968833,131.81,131.73,14.26698833]
[1750697754377,7.5863,131.77,131.73,14.26698833]
[1750697754576,18.95968833,131.81,131.74,7.5872]
[1750697755485,18.95968833,131.81,131.69,59.2257]
[1750697755674,7.5893,131.71,131.69,2.3657]
[1750697755880,71.14698833,131.75,131.68,2.4614]
[1750697756382,56.88,131.75,131.69,14.26698833]
[1750697756583,56.88,131.75,131.7,7.5895]
[1750697756787,7.5887,131.72,131.69,14.26698833]
[1750697756982,71.14698833,131.75,131.68,2.4614]
[1750697757185,71.14698833,131.75,131.68,10.0521]
[1750697757384,7.5896,131.71,131.68,2.4614]
[1750697757685,71.14698833,131.75,131.67,21.85808833]
[1750697757886,71.14698833,131.75,131.67,14.26698833]
[1750697759795,56.88,131.75,131.69,14.26698833]
[1750697760185,7.5878,131.74,131.69,14.26698833]
[1750697760690,56.88,131.75,131.69,14.26698833]
[1750697760888,712.26,131.79,131.73,14.26698833]
[1750697761091,56.88,131.79,131.75,14.26698833]
[1750697761292,56.88,131.79,131.73,14.26698833]
[1750697761687,56.88,131.79,131.66,2.4193]
[1750697761688,14.26698833,131.75,131.66,59.3193]
[1750697761893,14.26698833,131.75,131.66,73.58628833]
[1750697762095,14.26698833,131.77,131.68,14.26698833]
[1750697762397,56.88,131.79,131.72,14.26698833]
[1750697762798,7.5871,131.75,131.72,14.26698833]
[1750697762993,71.14698833,131.79,131.7,14.26698833]
[1750697763196,14.26698833,131.77,131.69,14.26698833]
[1750697763397,14.26698833,131.75,131.67,14.26698833]
[1750697763593,14.26698833,131.77,131.69,14.26698833]
[1750697763798,7.5878,131.74,131.71,7.5888]
[1750697764500,7.5882,131.73,131.71,7.5888]
[1750697764797,14.26698833,131.77,131.69,14.26698833]
[1750697765097,14.26698833,131.75,131.66,59.3193]
[1750697765394,7.5889,131.72,131.67,14.26698833]
[1750697765699,14.26698833,131.75,131.69,7.5901]
[1750697766099,7.5889,131.72,131.69,7.5901]
[1750697766399,7.5889,131.72,131.67,14.26698833]
[1750697766796,14.26698833,131.77,131.69,14.26698833]
[1750697767197,7.5872,131.75,131.69,14.26698833]
[1750697767397,4.6927,131.81,131.7,2.4638]
[1750697767602,4.6927,131.81,131.74,14.26698833]
[1750697767897,14.26698833,131.8,131.74,7.5874]
[1750697768298,7.5856,131.78,131.72,14.26698833]